fUSD/lending_fUSD_20260618
["ID","MTS","AMOUNT","RATE_DAILY","PERIOD"]
[425525367,1781797898000,-200.793283,0.0003495,7]
[425525328,1781797898000,-151.0,0.0003495,7]
[425525323,1781797898000,-151.0,0.0003495,7]
[425525327,1781797898000,-914.961053,0.0003495,7]
[425525325,1781797898000,-246.846223,0.0003495,7]
[425525326,1781797898000,-1721.204054,0.0003495,7]
[425525322,1781797898000,-914.961053,0.0003495,7]
[425525331,1781797898000,-151.0,0.0003495,7]
[425525329,1781797898000,-1721.204054,0.0003495,7]
[425525349,1781797898000,-1107.385603,0.0003495,7]
[425525330,1781797898000,-914.961053,0.0003495,7]
[425525340,1781797898000,-361.919746,0.0003495,7]
[425525337,1781797898000,-151.0,0.0003495,7]
[425525335,1781797898000,-1537.675114,0.0003495,7]
[425525339,1781797898000,-1537.675114,0.0003495,7]
[425525333,1781797898000,-1721.204054,0.0003495,7]
[425525338,1781797898000,-151.0,0.0003495,7]
[425525332,1781797898000,-1537.675114,0.0003495,7]
[425525346,1781797898000,-361.919746,0.0003495,7]
[425525344,1781797898000,-361.919746,0.0003495,7]
[425525336,1781797898000,-1537.675114,0.0003495,7]
[425525366,1781797898000,-734.666592,0.0003495,7]
[425525324,1781797898000,-151.0,0.0003495,7]
[425525373,1781797898000,-151.0,0.0003495,7]
[425525397,1781797898000,-151.0,0.0003495,7]
[425525400,1781797898000,-2285.239491,0.0003495,7]
[425525395,1781797898000,-151.0,0.0003495,7]
[425525401,1781797898000,-151.0,0.0003495,7]
[425525399,1781797898000,-166.306717,0.0003495,7]
[425525398,1781797898000,-151.0,0.0003495,7]
[425525402,1781797898000,-151.0,0.0003495,7]
[425525405,1781797898000,-734.210214,0.0003495,7]
[425525406,1781797898000,-151.0,0.0003495,7]
[425525396,1781797898000,-200.677284,0.0003495,7]
[425525403,1781797898000,-2285.239491,0.0003495,7]
[425525407,1781797898000,-2285.239491,0.0003495,7]
[425525413,1781797898000,-197.749872,0.0003495,7]
[425525410,1781797898000,-197.749872,0.0003495,7]
[425525409,1781797898000,-734.210214,0.0003495,7]
[425525408,1781797898000,-151.0,0.0003495,7]
[425525412,1781797898000,-2411.880846,0.0003495,7]
[425525411,1781797898000,-734.210214,0.0003495,7]
[425525414,1781797898000,-1856.36329022,0.0003495,7]
[425525376,1781797898000,-156.07996,0.0003495,7]
[425525404,1781797898000,-197.749872,0.0003495,7]
[425525394,1781797898000,-200.677284,0.0003495,7]
[425525393,1781797898000,-151.0,0.0003495,7]
[425525392,1781797898000,-323.21509,0.0003495,7]
[425525370,1781797898000,-734.666592,0.0003495,7]
[425525368,1781797898000,-151.0,0.0003495,7]
[425525372,1781797898000,-156.07996,0.0003495,7]
[425525371,1781797898000,-200.793283,0.0003495,7]
[425525369,1781797898000,-202.920556,0.0003495,7]
[425525377,1781797898000,-273.057781,0.0003495,7]
[425525374,1781797898000,-156.07996,0.0003495,7]
[425525375,1781797898000,-273.057781,0.0003495,7]
[425525378,1781797898000,-151.0,0.0003495,7]
[425525391,1781797898000,-200.677284,0.0003495,7]
[425525390,1781797898000,-323.21509,0.0003495,7]
[425525388,1781797898000,-323.21509,0.0003495,7]
[425525379,1781797898000,-273.057781,0.0003495,7]
[425525380,1781797898000,-156.07996,0.0003495,7]
[425525383,1781797898000,-151.457596,0.0003495,7]
[425525384,1781797898000,-286.01046,0.0003495,7]
[425525382,1781797898000,-273.057781,0.0003495,7]
[425525386,1781797898000,-300.006826,0.0003495,7]
[425525387,1781797898000,-323.21509,0.0003495,7]
[425525385,1781797898000,-151.0,0.0003495,7]
[425525381,1781797898000,-151.0,0.0003495,7]
[425525389,1781797898000,-200.677284,0.0003495,7]
[425525417,1781797900000,-2799.0,0.00034249,7]
[425525415,1781797900000,-200.0,0.00028912,2]
[425525416,1781797900000,-151.0,0.000337,7]
[425525419,1781797900000,-159.06,0.00028728,30]
[425525418,1781797900000,-157.23,0.00028671,2]
[425525420,1781797900000,-500.0,0.00032877,2]
[425525422,1781797900000,-434.62851615,0.00034691,7]
[425525421,1781797900000,-998.985774,0.00034249,7]
[425525423,1781797900000,168.46,0.00024658,2]
[425525424,1781797900000,2500.0,0.00023061,2]
[425525427,1781797901000,-168.46,0.00027397,2]
[425525425,1781797901000,-168.46,0.00025571,7]
[425525426,1781797901000,-168.46,0.00026484,30]
[425525428,1781797901000,-168.46,0.0002831,7]
[425525432,1781797901000,-296.02,0.00028849,7]
[425525431,1781797901000,-157.23,0.00028811,7]
[425525430,1781797901000,-284.20817391,0.00028689,30]
[425525429,1781797901000,-11.81182609,0.00028689,30]
[425525434,1781797901000,-5619.18116799,0.00028857,2]
[425525435,1781797901000,-523.99858392,0.00028857,2]
[425525437,1781797901000,-325.27658662,0.00028857,2]
[425525438,1781797901000,-645.43761001,0.00028857,2]
[425525440,1781797901000,-1075.1460697,0.00028857,2]
[425525436,1781797901000,-529.82820939,0.00028857,2]
[425525439,1781797901000,-2174.72423765,0.00028857,2]
[425525441,1781797901000,-20425.57283153,0.00028857,2]
[425525433,1781797901000,-226.99349574,0.00028857,2]
[425525456,1781797902000,-84.18709756,0.00030885,2]
[425525457,1781797902000,-500.0,0.00032877,2]
[425525459,1781797902000,-1006.36325159,0.000337,7]
[425525461,1781797902000,-998.443241,0.000337,7]
[425525462,1781797902000,-1216.004275,0.000337,7]
[425525473,1781797902000,-1434.27655336,0.00034249,7]
[425525470,1781797902000,-151.0,0.00034249,7]
[425525464,1781797902000,-151.0,0.00033829,7]
[425525472,1781797902000,-561.59219213,0.00034249,7]
[425525469,1781797902000,-931.50737471,0.00033829,7]
[425525453,1781797902000,-296.02,0.00029654,30]
[425525463,1781797902000,-998.443241,0.000337,7]
[425525455,1781797902000,-556.60716841,0.00030885,2]
[425525447,1781797902000,-296.02,0.00029171,30]
[425525460,1781797902000,-1280.35238541,0.000337,7]
[425525454,1781797902000,-296.02,0.00029815,7]
[425525452,1781797902000,-296.02,0.00029493,2]
[425525449,1781797902000,-123.23826438,0.00029223,30]
[425525451,1781797902000,-296.02,0.00029332,7]
[425525450,1781797902000,-157.25,0.00029232,7]
[425525446,1781797902000,-157.23,0.00029092,2]
[425525444,1781797902000,-157.23,0.00028951,30]
[425525465,1781797902000,-2286.715637,0.00033829,7]
[425525445,1781797902000,-296.02,0.0002901,2]
[425525448,1781797902000,-45.22173562,0.00029223,30]
[425525443,1781797902000,-3725.53983917,0.00028857,2]
[425525442,1781797902000,-3549.47318663,0.00028857,2]
[425525458,1781797902000,-433.52117224,0.00032877,2]
[425525466,1781797902000,-998.443241,0.00033829,7]
[425525480,1781797902000,-296.05,0.00030136,30]
[425525467,1781797902000,-1216.004275,0.00033829,7]
[425525471,1781797902000,-290.84689151,0.00034249,7]
[425525498,1781797902000,-578.95802488,0.0003495,7]
[425525493,1781797902000,-1216.004275,0.00034691,7]
[425525499,1781797902000,-44.16469616,0.0003495,7]
[425525496,1781797902000,-151.0,0.0003495,7]
[425525494,1781797902000,-998.443241,0.00034691,7]
[425525495,1781797902000,-428.87620078,0.0003495,7]
[425525497,1781797902000,-1832.92282112,0.0003495,7]
[425525492,1781797902000,-998.443241,0.00034691,7]
[425525488,1781797902000,-563.81472485,0.00034691,7]
[425525490,1781797902000,-3797.985774,0.00034691,7]
[425525485,1781797902000,-151.0,0.00033829,7]
[425525489,1781797902000,-1216.004275,0.00034691,7]
[425525500,1781797902000,-153.58517584,0.0003495,7]
[425525487,1781797902000,-998.443241,0.00034249,7]
[425525483,1781797902000,-800.0,0.000335,2]
[425525474,1781797902000,-998.443241,0.00034249,7]
[425525476,1781797902000,-170.43,0.00028698,30]
[425525477,1781797902000,-170.43,0.00028857,7]
[425525478,1781797902000,-3141.88323089,0.00029334,2]
[425525475,1781797902000,-206.85666089,0.00034249,7]
[425525491,1781797902000,-2286.715637,0.00034691,7]
[425525486,1781797902000,-1009.14761411,0.00034249,7]
[425525479,1781797902000,-296.02,0.00029976,2]
[425525468,1781797902000,-66.93586629,0.00033829,7]
[425525482,1781797902000,-800.0,0.00033,2]
[425525481,1781797902000,-800.0,0.000325,2]
[425525484,1781797902000,-151.0,0.000337,7]
[425525531,1781797903000,-818.548142,0.0003495,7]
[425525537,1781797903000,-347.010482,0.0003495,7]
[425525529,1781797903000,-379.054852,0.0003495,7]
[425525528,1781797903000,-173.832915,0.0003495,7]
[425525533,1781797903000,-151.0,0.0003495,7]
[425525541,1781797903000,-592.98246,0.0003495,7]
[425525534,1781797903000,-379.054852,0.0003495,7]
[425525535,1781797903000,-391.597652,0.0003495,7]
[425525532,1781797903000,-151.0,0.0003495,7]
[425525536,1781797903000,-476.451292,0.0003495,7]
[425525526,1781797903000,-151.0,0.0003495,7]
[425525543,1781797903000,-171.347562,0.0003495,7]
[425525538,1781797903000,-818.548142,0.0003495,7]
[425525540,1781797903000,-151.0,0.0003495,7]
[425525542,1781797903000,-151.0,0.0003495,7]
[425525551,1781797903000,-151.0,0.0003495,7]
[425525545,1781797903000,-379.054852,0.0003495,7]
[425525544,1781797903000,-151.0,0.0003495,7]
[425525547,1781797903000,-476.451292,0.0003495,7]
[425525549,1781797903000,-773.501444,0.0003495,7]
[425525548,1781797903000,-347.010482,0.0003495,7]
[425525527,1781797903000,-566.010539,0.0003495,7]
[425525539,1781797903000,-773.501444,0.0003495,7]
[425525530,1781797903000,-391.597652,0.0003495,7]
[425525518,1781797903000,-1729.432278,0.0003495,7]
[425525522,1781797903000,-379.054852,0.0003495,7]
[425525502,1781797903000,-2711.015753,0.0003495,7]
[425525509,1781797903000,-151.0,0.0003495,7]
[425525501,1781797903000,-734.210214,0.0003495,7]
[425525505,1781797903000,-2411.880846,0.0003495,7]
[425525504,1781797903000,-1729.432278,0.0003495,7]
[425525508,1781797903000,-566.010539,0.0003495,7]
[425525510,1781797903000,-2711.015753,0.0003495,7]
[425525503,1781797903000,-2411.880846,0.0003495,7]
[425525506,1781797903000,-2711.015753,0.0003495,7]
[425525507,1781797903000,-1729.432278,0.0003495,7]
[425525525,1781797903000,-818.548142,0.0003495,7]
[425525512,1781797903000,-173.832915,0.0003495,7]
[425525514,1781797903000,-391.597652,0.0003495,7]
[425525517,1781797903000,-2711.015753,0.0003495,7]
[425525511,1781797903000,-1729.432278,0.0003495,7]
[425525520,1781797903000,-391.597652,0.0003495,7]
[425525519,1781797903000,-566.010539,0.0003495,7]
[425525513,1781797903000,-566.010539,0.0003495,7]
[425525516,1781797903000,-818.548142,0.0003495,7]
[425525521,1781797903000,-173.832915,0.0003495,7]
[425525523,1781797903000,-151.0,0.0003495,7]
[425525524,1781797903000,-151.0,0.0003495,7]
[425525515,1781797903000,-151.0,0.0003495,7]
[425525550,1781797903000,-151.0,0.0003495,7]
[425525546,1781797903000,-173.832915,0.0003495,7]
[425525552,1781797903000,-592.98246,0.0003495,7]
[425525582,1781797903000,-306.97881111,0.0003495,7]
[425525580,1781797903000,-151.0,0.0003495,7]
[425525584,1781797903000,-151.0,0.0003495,7]
[425525591,1781797903000,-336.046674,0.0003495,7]
[425525586,1781797903000,-336.046674,0.0003495,7]
[425525590,1781797903000,-3412.844664,0.0003495,7]
[425525585,1781797903000,-3412.844664,0.0003495,7]
[425525583,1781797903000,-224.81772089,0.0003495,7]
[425525587,1781797903000,-1095.38218,0.0003495,7]
[425525592,1781797903000,-240.04382,0.0003495,7]
[425525578,1781797903000,-151.0,0.0003495,7]
[425525588,1781797903000,-151.0,0.0003495,7]
[425525601,1781797903000,-1095.38218,0.0003495,7]
[425525597,1781797903000,-3412.844664,0.0003495,7]
[425525594,1781797903000,-151.0,0.0003495,7]
[425525596,1781797903000,-366.91308,0.0003495,7]
[425525595,1781797903000,-151.0,0.0003495,7]
[425525599,1781797903000,-336.046674,0.0003495,7]
[425525602,1781797903000,-366.91308,0.0003495,7]
[425525600,1781797903000,-240.04382,0.0003495,7]
[425525598,1781797903000,-720.291608,0.0003495,7]
[425525553,1781797903000,-476.451292,0.0003495,7]
[425525593,1781797903000,-1095.38218,0.0003495,7]
[425525572,1781797903000,-295.175026,0.0003495,7]
[425525589,1781797903000,-366.91308,0.0003495,7]
[425525579,1781797903000,-295.175026,0.0003495,7]
[425525575,1781797903000,-295.175026,0.0003495,7]
[425525556,1781797903000,-592.98246,0.0003495,7]
[425525554,1781797903000,-347.010482,0.0003495,7]
[425525560,1781797903000,-773.501444,0.0003495,7]
[425525557,1781797903000,-476.451292,0.0003495,7]
[425525561,1781797903000,-256.64054,0.0003495,7]
[425525558,1781797903000,-160.937121,0.0003495,7]
[425525563,1781797903000,-160.937121,0.0003495,7]
[425525562,1781797903000,-592.98246,0.0003495,7]
[425525566,1781797903000,-256.64054,0.0003495,7]
[425525564,1781797903000,-256.64054,0.0003495,7]
[425525559,1781797903000,-347.010482,0.0003495,7]
[425525565,1781797903000,-160.937121,0.0003495,7]
[425525574,1781797903000,-151.0,0.0003495,7]
[425525576,1781797903000,-47.85341398,0.0003495,7]
[425525577,1781797903000,-483.94311802,0.0003495,7]
[425525581,1781797903000,-295.175026,0.0003495,7]
[425525573,1781797903000,-531.796532,0.0003495,7]
[425525555,1781797903000,-773.501444,0.0003495,7]
[425525568,1781797903000,-160.937121,0.0003495,7]
[425525567,1781797903000,-151.0,0.0003495,7]
[425525571,1781797903000,-144.18510657,0.0003495,7]
[425525569,1781797903000,-256.64054,0.0003495,7]
[425525570,1781797903000,-387.61142543,0.0003495,7]
[425525636,1781797904000,-151.0,0.0003495,7]
[425525630,1781797904000,-151.0,0.0003495,7]
[425525632,1781797904000,-151.0,0.0003495,7]
[425525633,1781797904000,-151.0,0.0003495,7]
[425525639,1781797904000,-417.644446,0.0003495,7]
[425525645,1781797904000,-151.0,0.0003495,7]
[425525642,1781797904000,-368.87083,0.0003495,7]
[425525643,1781797904000,-151.0,0.0003495,7]
[425525640,1781797904000,-151.0,0.0003495,7]
[425525637,1781797904000,-151.0,0.0003495,7]
[425525631,1781797904000,-417.644446,0.0003495,7]
[425525653,1781797904000,-476.864769,0.0003495,7]
[425525638,1781797904000,-382.988384,0.0003495,7]
[425525644,1781797904000,-869.794385,0.0003495,7]
[425525646,1781797904000,-382.988384,0.0003495,7]
[425525651,1781797904000,-382.988384,0.0003495,7]
[425525647,1781797904000,-417.644446,0.0003495,7]
[425525652,1781797904000,-151.0,0.0003495,7]
[425525649,1781797904000,-151.0,0.0003495,7]
[425525648,1781797904000,-151.0,0.0003495,7]
[425525654,1781797904000,-151.0,0.0003495,7]
[425525650,1781797904000,-869.794385,0.0003495,7]
[425525655,1781797904000,-171.551347,0.0003495,7]
[425525628,1781797904000,-869.794385,0.0003495,7]
[425525641,1781797904000,-151.0,0.0003495,7]
[425525629,1781797904000,-151.0,0.0003495,7]
[425525605,1781797904000,-240.04382,0.0003495,7]
[425525627,1781797904000,-368.87083,0.0003495,7]
[425525604,1781797904000,-336.046674,0.0003495,7]
[425525603,1781797904000,-3412.844664,0.0003495,7]
[425525656,1781797904000,-226.373214,0.0003495,7]
[425525610,1781797904000,-720.291608,0.0003495,7]
[425525606,1781797904000,-720.291608,0.0003495,7]
[425525611,1781797904000,-240.04382,0.0003495,7]
[425525609,1781797904000,-366.91308,0.0003495,7]
[425525607,1781797904000,-1095.38218,0.0003495,7]
[425525612,1781797904000,-541.147652,0.0003495,7]
[425525608,1781797904000,-151.0,0.0003495,7]
[425525613,1781797904000,-236.350778,0.0003495,7]
[425525625,1781797904000,-151.0,0.0003495,7]
[425525615,1781797904000,-541.147652,0.0003495,7]
[425525617,1781797904000,-236.350778,0.0003495,7]
[425525622,1781797904000,-541.147652,0.0003495,7]
[425525620,1781797904000,-236.350778,0.0003495,7]
[425525618,1781797904000,-541.147652,0.0003495,7]
[425525619,1781797904000,-151.0,0.0003495,7]
[425525624,1781797904000,-417.644446,0.0003495,7]
[425525623,1781797904000,-151.0,0.0003495,7]
[425525621,1781797904000,-368.87083,0.0003495,7]
[425525635,1781797904000,-869.794385,0.0003495,7]
[425525626,1781797904000,-236.350778,0.0003495,7]
[425525634,1781797904000,-368.87083,0.0003495,7]
[425525614,1781797904000,-720.291608,0.0003495,7]
[425525668,1781797904000,-199.962935,0.0003495,7]
[425525616,1781797904000,-151.0,0.0003495,7]
[425525659,1781797904000,-151.0,0.0003495,7]
[425525685,1781797904000,-1329.601019,0.0003495,7]
[425525690,1781797904000,-354.715039,0.0003495,7]
[425525691,1781797904000,-326.644187,0.0003495,7]
[425525702,1781797904000,-2215.8248,0.00034958,2]
[425525695,1781797904000,-5411.402784,0.0003495,7]
[425525703,1781797904000,-1000.0,0.0003497,2]
[425525694,1781797904000,-326.644187,0.0003495,7]
[425525693,1781797904000,-352.982614,0.0003495,7]
[425525699,1781797904000,-352.982614,0.0003495,7]
[425525697,1781797904000,-326.644187,0.0003495,7]
[425525700,1781797904000,-352.982614,0.0003495,7]
[425525687,1781797904000,-1329.601019,0.0003495,7]
[425525692,1781797904000,-5411.402784,0.0003495,7]
[425525701,1781797904000,-196.011692,0.0003495,7]
[425525705,1781797904000,-192.0,0.00034973,2]
[425525704,1781797904000,-500.0,0.0003497,2]
[425525707,1781797904000,-208.39824339,0.00034986,120]
[425525706,1781797904000,-161.559478,0.00034978,120]
[425525708,1781797904000,-151.0,0.00034997,14]
[425525709,1781797904000,-151.0,0.00034997,14]
[425525712,1781797904000,-175.0,0.00034999,60]
[425525710,1781797904000,-151.0,0.00034997,14]
[425525711,1781797904000,-239.0,0.00034999,60]
[425525658,1781797904000,-476.864769,0.0003495,7]
[425525698,1781797904000,-5411.402784,0.0003495,7]
[425525686,1781797904000,-354.715039,0.0003495,7]
[425525696,1781797904000,-352.982614,0.0003495,7]
[425525689,1781797904000,-326.644187,0.0003495,7]
[425525661,1781797904000,-476.864769,0.0003495,7]
[425525684,1781797904000,-151.0,0.0003495,7]
[425525657,1781797904000,-382.988384,0.0003495,7]
[425525662,1781797904000,-171.551347,0.0003495,7]
[425525660,1781797904000,-171.551347,0.0003495,7]
[425525663,1781797904000,-199.962935,0.0003495,7]
[425525666,1781797904000,-199.962935,0.0003495,7]
[425525665,1781797904000,-171.551347,0.0003495,7]
[425525667,1781797904000,-199.962935,0.0003495,7]
[425525670,1781797904000,-151.0,0.0003495,7]
[425525671,1781797904000,-268.606657,0.0003495,7]
[425525680,1781797904000,-766.711533,0.0003495,7]
[425525672,1781797904000,-151.0,0.0003495,7]
[425525664,1781797904000,-476.864769,0.0003495,7]
[425525669,1781797904000,-268.606657,0.0003495,7]
[425525674,1781797904000,-151.0,0.0003495,7]
[425525676,1781797904000,-766.711533,0.0003495,7]
[425525675,1781797904000,-268.606657,0.0003495,7]
[425525678,1781797904000,-766.711533,0.0003495,7]
[425525677,1781797904000,-766.711533,0.0003495,7]
[425525679,1781797904000,-1329.601019,0.0003495,7]
[425525673,1781797904000,-268.606657,0.0003495,7]
[425525681,1781797904000,-1329.601019,0.0003495,7]
[425525682,1781797904000,-354.715039,0.0003495,7]
[425525683,1781797904000,-5411.402784,0.0003495,7]
[425525688,1781797904000,-354.715039,0.0003495,7]
[425525730,1781797905000,-26288.78081902,0.00035,5]
[425525728,1781797905000,-1000.0,0.00035,2]
[425525732,1781797905000,-2572.52391621,0.00035,2]
[425525734,1781797905000,-216.73988503,0.00035,120]
[425525739,1781797905000,-1766.51807432,0.00035,120]
[425525735,1781797905000,-3044.77126271,0.00035,120]
[425525733,1781797905000,-2504.58849305,0.00035,2]
[425525738,1781797905000,-18745.6078268,0.00035,120]
[425525749,1781797905000,-30000.0,0.00035,10]
[425525729,1781797905000,-663.45313066,0.00035,7]
[425525731,1781797905000,-340000.0,0.00035,4]
[425525736,1781797905000,-999.999999,0.00035,30]
[425525715,1781797905000,-300.0,0.00034999,10]
[425525724,1781797905000,-3923.36285295,0.00035,20]
[425525723,1781797905000,-508.0,0.00035,120]
[425525721,1781797905000,-333.54587146,0.00034999,60]
[425525722,1781797905000,-500.0,0.00035,120]
[425525720,1781797905000,-300.0,0.00034999,10]
[425525719,1781797905000,-300.0,0.00034999,10]
[425525716,1781797905000,-677.18195857,0.00034999,30]
[425525725,1781797905000,-1030.7601657,0.00035,7]
[425525718,1781797905000,-666.0,0.00034999,30]
[425525714,1781797905000,-300.0,0.00034999,10]
[425525717,1781797905000,-300.0,0.00034999,10]
[425525713,1781797905000,-186.0,0.00034999,60]
[425525740,1781797905000,-389.52618141,0.00035,60]
[425525726,1781797905000,-9509.1924095,0.00035,120]
[425525741,1781797905000,-257.06,0.00035,14]
[425525727,1781797905000,-184169.33134346,0.00035,30]
[425525748,1781797905000,-30000.0,0.00035,15]
[425525770,1781797905000,-4403.13,0.00035,120]
[425525766,1781797905000,-170.43,0.00029017,2]
[425525768,1781797905000,-151.0,0.00034249,7]
[425525767,1781797905000,-800.0,0.00034,7]
[425525764,1781797905000,-599.85460884,0.00035,120]
[425525765,1781797905000,-6128.5128,0.00035,120]
[425525763,1781797905000,-3058683.62703014,0.00035,120]
[425525758,1781797905000,-5000.0,0.00035,2]
[425525757,1781797905000,-398.0,0.00035,2]
[425525756,1781797905000,-1000.0,0.00035,2]
[425525761,1781797905000,-200.0,0.00035,14]
[425525762,1781797905000,-881.43115031,0.00035,120]
[425525754,1781797905000,-1000.0,0.00035,2]
[425525769,1781797905000,-4407.25568178,0.00035,120]
[425525755,1781797905000,-1000.0,0.00035,2]
[425525760,1781797905000,-203.0,0.00035,60]
[425525743,1781797905000,-151.0,0.00035,120]
[425525742,1781797905000,-151.0,0.00035,120]
[425525747,1781797905000,-14000.0,0.00035,120]
[425525746,1781797905000,-187.65,0.00035,2]
[425525744,1781797905000,-187.67,0.00035,2]
[425525737,1781797905000,-44466.17,0.00035,15]
[425525752,1781797905000,-1000.0,0.00035,2]
[425525750,1781797905000,-10503.0,0.00035,30]
[425525751,1781797905000,-1000.0,0.00035,2]
[425525759,1781797905000,-543.94580555,0.00035,120]
[425525753,1781797905000,-1000.0,0.00035,2]
[425525745,1781797905000,-187.65,0.00035,2]
[425525771,1781797906000,151.3,0.00018,2]
[425525774,1781797907000,152.0,0.00027192,120]
[425525773,1781797907000,152.0,0.00027192,120]
[425525772,1781797907000,152.0,0.00027192,120]
[425525775,1781797908000,152.0,0.00027222,120]
[425525776,1781797908000,152.0,0.00027222,120]
[425525778,1781797908000,769.37,0.0002316,2]
[425525777,1781797908000,152.0,0.00027252,120]
[425525781,1781797908000,500.0,0.00016927,2]
[425525782,1781797908000,500.0,0.00016927,2]
[425525779,1781797908000,769.37,0.0002316,2]
[425525780,1781797908000,769.37,0.0002316,2]
[425525787,1781797909000,769.37,0.0002316,2]
[425525786,1781797909000,769.37,0.0002316,2]
[425525785,1781797909000,168.12367,0.00027254,120]
[425525784,1781797909000,769.37,0.0002316,2]
[425525783,1781797909000,350.0,0.00016927,2]
[425525788,1781797910000,9461.60683492,0.00022988,2]
[425525789,1781797912000,500.0,0.00027773,120]
[425525790,1781797921000,300.0,0.00016928,2]
[425525791,1781797924000,774.30738054,0.00016928,2]
[425525793,1781797924000,250.0,0.00015774,2]
[425525792,1781797924000,250.0,0.00016928,2]
[425525794,1781797968000,-500.0,0.00016927,2]
[425525795,1781797983000,563.74,0.00027773,120]
[425525798,1781797989000,36.85036749,0.0001399,2]
[425525797,1781797989000,151.0,0.0001399,2]
[425525796,1781797989000,173.24479151,0.0001399,2]
[425525799,1781798024000,189.61501805,0.00015,2]
[425525801,1781798024000,595.94522177,0.00015,2]
[425525800,1781798024000,274.608611,0.00015,2]
[425525803,1781798024000,241.62218576,0.00015,2]
[425525804,1781798024000,151.0,0.00015,2]
[425525802,1781798024000,268.45247725,0.00015,2]
[425525806,1781798024000,334.62985219,0.00015,2]
[425525805,1781798024000,151.0,0.00015,2]
[425525808,1781798024000,281.15634428,0.00015,2]
[425525807,1781798024000,202.94348021,0.00015,2]
[425525809,1781798024000,220.88742866,0.00015,2]
[425525812,1781798024000,166.66,0.00015,2]
[425525811,1781798024000,154.30365572,0.00015,2]
[425525813,1781798024000,270.46708875,0.00015,2]
[425525814,1781798024000,170.04005604,0.00015,2]
[425525815,1781798024000,151.0,0.00015,2]
[425525816,1781798024000,151.0,0.00015,2]
[425525818,1781798024000,355.17877233,0.00015,2]
[425525817,1781798024000,151.0,0.00015,2]
[425525819,1781798024000,166.35701936,0.00015,2]
[425525810,1781798024000,252.84331024,0.00015,2]
[425525824,1781798025000,220.40339578,0.00015,2]
[425525820,1781798025000,150.88590287,0.00015,2]
[425525821,1781798025000,155.0,0.00015,2]
[425525822,1781798025000,156.0,0.00015,2]
[425525823,1781798025000,548.67841078,0.00015,2]
[425525830,1781798025000,700453.47122944,0.00015,2]
[425525826,1781798025000,1874.65435422,0.00015,2]
[425525828,1781798025000,1772.97252031,0.00015,2]
[425525827,1781798025000,1262.44160401,0.00015,2]
[425525829,1781798025000,33300.0,0.00015,2]
[425525825,1781798025000,1166.05353161,0.00015,2]
[425525833,1781798051000,545.01304499,0.00015,2]
[425525832,1781798051000,639.64709804,0.00015,2]
[425525831,1781798051000,1440.32120105,0.00015,2]
[425525835,1781798077000,2373.5561072,0.00015,2]
[425525834,1781798077000,1786.2867873,0.00015,2]
[425525836,1781798148000,152.0,0.00027164,120]
[425525837,1781798149000,152.0,0.00027194,120]
[425525838,1781798150000,6610.65913412,0.00014989,2]
[425525840,1781798191000,500.0,0.0002791,120]
[425525841,1781798199000,927.06414644,0.000301,120]
[425525842,1781798232000,500.0,0.0002791,120]
[425525844,1781798320000,250.0,0.00014,2]
[425525845,1781798348000,4429.60000649,0.00015,2]
[425525847,1781798360000,376.64,0.00029729,120]